{"text_format":"1","workbook":"xlsx","n_sheets":2,"sheets":["1_с ЦАОП","1.1_Школы"],"not_rendered":{"charts":0,"images":0,"macros":1,"external_links":0,"defined_names":2,"comments":0,"pivot_tables":0},"unopened":[],"bounds":{"document_bytes":16777216,"sheet_cells":100000,"rows_first":2000,"rows_last":500,"rows_between":2000,"halvings":0,"cell_chars":16384,"cell_head_chars":4096},"cells_cut":0,"cells_raw":0,"read":"whole","date_system":"1900"}

{"sheet":"1_с ЦАОП","index":0,"n_rows":54,"n_cols":25,"rows_kept":54,"cut":false,"hidden":false,"merged":[[7,21,7,23],[8,22,9,22],[7,24,9,24],[2,0,2,23],[7,6,7,10],[7,11,7,12],[4,0,4,23],[3,0,3,23],[7,0,9,0],[7,1,9,1],[7,3,9,3],[7,4,9,4],[8,19,9,19],[7,15,9,15],[7,18,9,18],[8,9,9,9],[8,8,9,8],[8,17,9,17],[8,14,9,14],[52,0,52,23],[51,0,51,23],[8,5,9,5],[8,21,9,21],[8,23,9,23],[8,11,9,11],[8,2,9,2],[8,6,9,6]]}
[null,null,null,null,null,null,null,null,null,null,null,null,null,null,"Приложение №1 к форме 1ОТ (для МО, имеющих прикрепленное население)"]
[]
["Информация о количестве врачей (количестве занятых штатных должностей), участвующих в оказании первичной медико-санитарной помощи и о планируемых к выполнению объемах медицинской помощи на плановый 2026 год в амбулаторных условиях, в соответствии с подпунктами 17 и 19 пункта 120 Правил ОМС, утвержденных приказом Министерства здравоохранения Российской Федерации от 21.08.2025 №496н"]
[]
["________________________________________________________________________________________________________________________________________________________\n(наименование медицинской организации)"]
[]
[]
["Специальности *****)","Количество занятых штатных должностей врачей по утвержденному штатному расписанию по состоянию на __.___.2026г.     *)","из них:","Среднее число посещений в год на 1,0 занятую врачебную должность, установленное Приказом Министерства здравоохранения Пензенской области от 14.01.2015г. №2 (с последующими изменениями)","Расчетные объемы АПП, в соответствии с функцией врачебной должности и количеством занятых штатных должностей \n (в посещениях) ","из них:","Предложения МО о планируемых к выполнению в 2027 году объемов медицинской помощи",null,null,null,null,"МАКСИМАЛЬНО\nвозможное расчетное количество объемов медицинской помощи на 2027г.",null,null,"Предложения МО о планируемых к выполнению в 2027г. объемов медицинской помощи","Посещения с профилактическими и иными целями, \nс учетом диспансеризации, включая углубленную диспансеризацию по оценке репродуктивного здоровья и профилактических осмотров\n (в посещениях) ",null,"Предложения МО о планируемых к выполнению в 2027г. объемов медицинской помощи","\n\nМАКСИМАЛЬНО\nвозможное количество посещений, подлежащих к выполнению объемов АПП с учетом неотложной медицинской помощи\n (в посещениях) ","из них:",null,"Предложения МО о планируемых к выполнению в 2027 году объемов медицинской помощи",null,null,"Проверка\n\"+\" - превышение планируемых мо объемов над максимально возможным количеством посещений\n\nгр.15-гр.4-гр.9-гр.11"]
[null,null,"Центры амбулаторной онкологической помощи",null,null,"Центры амбулаторной онкологической помощи","Обращения, в связи с заболеванием, \nс учетом диспансерного наблюдения, школ для больных с хроническими заболеваниями,  школ для беременных и по вопросам грудного вскармливания и II этапа диспансеризации взрослого населения \n(в обращениях) ","из них:","Установленное  среднее число посещений по поводу заболеваний в одном обращении ","Посещения, в связи с заболеванием, \nс учетом диспансерного наблюдения\n (в посещениях)","из них:","Посещения с иными целями, \nбез учета диспансеризации и профилактических осмотров\n (в посещениях) ","из них:",null,"Диспансеризации \n(1 этап), включая углубленную диспансеризацию по оценке репродуктивного здоровья и профилактические осмотры \n(в посещениях)",null,null,"Неотложная медицинская помощь\n(посещения)",null,"Центры амбулаторной онкологической помощи\n (в посещениях)",null,"Справочно:\nПосещения с иными целями, \nбез учета диспансеризации, включая углубленную диспансеризацию по оценке репродуктивного здоровья и профилактических осмотров\n (в посещениях)","Посещения с профилактическими и иными целями, \nс учетом диспансеризации и профилактических осмотров\n (в посещениях) ","ВСЕГО посещений \n(с  иными целями, по поводу заболевания, неотложной медицинской помощи)\n\nгр. 15 = гр. 4 формы 1ОТ"]
[null,null,null,null,null,null,null,"Центры амбулаторной онкологической помощи\n(в обращениях) ",null,null,"Центры амбулаторной онкологической помощи\n (в посещениях)",null,"Центры амбулаторной онкологической помощи\n (в посещениях) "]
[1,2,"2.1.",3,"4=2*3","4.1.",5,"5.1.",6,"7=5*6","7.1.","8=4-7","8.1.",null,9,"10=8+9",null,11,"12=7+10+11","12.1.",null,13,"14 = 9+13","15 = 7+11+14",16]
["Кардиология",null,null,4470,{"$f":"ROUND(B12*D12,0)","v":0},{"$f":"ROUND(C12*D12,0)","v":0},null,null,3.1,{"$f":"ROUND(G12*$I12,0)","v":0},{"$f":"ROUND(H12*$I12,0)","v":0},{"$f":"IF(ROUND(E12-J12,0)>0, ROUND(E12-J12,0),0)","v":0},{"$f":"IF(ROUND(F12-K12,0)>0, ROUND(F12-K12,0),0)","v":0},null,null,{"$f":"L12+O12","v":0},null,null,{"$f":"J12+P12+R12","v":0},{"$f":"K12+M12","v":0},null,null,{"$f":"O12+V12","v":0},{"$f":"J12+R12+W12","v":0},{"$f":"X12-S12","v":0}]
["Кардиология детская",null,null,3470,{"$f":"ROUND(B13*D13,0)","v":0},{"$f":"ROUND(C13*D13,0)","v":0},null,null,3.1,{"$f":"ROUND(G13*$I13,0)","v":0},{"$f":"ROUND(H13*$I13,0)","v":0},{"$f":"IF(ROUND(E13-J13,0)>0, ROUND(E13-J13,0),0)","v":0},{"$f":"IF(ROUND(F13-K13,0)>0, ROUND(F13-K13,0),0)","v":0},null,null,0,null,null,0,{"$f":"K13+M13","v":0},null,null,{"$f":"O13+V13","v":0},{"$f":"J13+R13+W13","v":0},{"$f":"X13-S13","v":0}]
["Ревматология",null,null,3888,0,0,null,null,3.1,0,0,0,0,null,null,0,null,null,0,0,null,null,0,0,0]
["Педиатрия   ",null,null,5224,0,0,null,null,2.8,0,0,0,0,null,null,0,null,null,0,0,null,null,0,0,0]
["Терапия   ",null,null,5224,0,0,null,null,2.7,0,0,0,0,null,null,0,null,null,0,0,null,null,0,0,0]
["Пульмонология ",null,null,2724,0,0,null,null,2.7,0,0,0,0,null,null,0,null,null,0,0,null,null,0,0,0]
["Гастроэнтерология",null,null,4315,0,0,null,null,2.7,0,0,0,0,null,null,0,null,null,0,0,null,null,0,0,0]
["Нефрология (без учета заместительной почечной терапии)",null,null,2231,0,0,null,null,2.7,0,0,0,0,null,null,0,null,null,0,0,null,null,0,0,0]
["Гематология",null,null,3779,0,0,null,null,2.7,0,0,0,0,null,null,0,null,null,0,0,null,null,0,0,0]
["Эндокринология, эндокринология детская, из них:",null,null,3869,0,0,{"$f":"G22+G23","v":0},null,2.5,0,0,0,0,null,null,0,null,null,0,0,null,null,{"$f":"O21+V21","v":0},0,0]
["на приеме","х","х","х","х","х",null,"х","х","х","х","х","х",null,"х","х",null,"х","х","х",null,"х","х","х","х"]
["школа сахарного диабета","х","х","х","х","х",null,"х","х","х","х","х","х",null,"х","х",null,"х","х","х",null,"х","х","х","х"]
["Аллергология",null,null,3450,0,{"$f":"ROUND(C24*D24,0)","v":0},null,null,2.6,{"$f":"ROUND(G24*$I24,0)","v":0},{"$f":"ROUND(H24*$I24,0)","v":0},{"$f":"IF(ROUND(E24-J24,0)>0, ROUND(E24-J24,0),0)","v":0},{"$f":"IF(ROUND(F24-K24,0)>0, ROUND(F24-K24,0),0)","v":0},null,null,{"$f":"L24+O24","v":0},null,null,{"$f":"J24+P24+R24","v":0},{"$f":"K24+M24","v":0},null,null,{"$f":"O24+V24","v":0},{"$f":"J24+R24+W24","v":0},0]
["Неврология ",null,null,4600,0,0,null,null,2.9,0,0,0,0,null,null,0,null,null,0,0,null,null,0,0,0]
["Инфекционные болезни ",null,null,3800,0,0,null,null,2.4,0,0,0,0,null,null,0,null,null,0,0,null,null,0,0,0]
["Хирургия ",null,null,5500,0,0,null,null,3,0,0,0,0,null,null,0,null,null,0,0,null,null,0,0,0]
["Хирургия детская",null,null,5800,0,0,null,null,3,0,0,0,0,null,null,0,null,null,0,0,null,null,0,0,0]
["Сердечно-сосудистая хирургия",null,null,2500,0,0,null,null,3,0,0,0,0,null,null,0,null,null,0,0,null,null,0,0,0]
["Травматология -ортопедия",null,null,5500,0,0,null,null,3,0,0,0,0,null,null,0,null,null,0,0,null,null,0,0,0]
["Нейрохирургия",null,null,2100,0,0,null,null,3,0,0,0,0,null,null,0,null,null,0,0,null,null,0,0,0]
["Онкология, онкология детская",null,null,3750,0,0,null,null,3,0,0,0,0,null,null,0,null,null,0,0,null,null,0,0,0]
["Колопроктология",null,null,2200,0,0,null,null,3,0,0,0,0,null,null,0,null,null,0,0,null,null,0,0,0]
["Урология ",null,null,4211,0,0,null,null,2.6,0,0,0,0,null,null,0,null,null,0,0,null,null,0,0,0]
["Стоматология **)",null,null,3790,0,0,null,null,3,0,0,0,0,null,null,0,null,null,0,0,null,null,0,{"$f":"J35+R35+W35","v":0},0]
["Акушерство-гинекология",null,null,5282,0,0,null,null,3.8,0,0,0,0,null,null,0,null,null,0,0,null,null,0,0,0]
["Отоларингология ",null,null,4910,0,0,null,null,4.0999999999999996,0,0,0,0,null,null,0,null,null,0,0,null,null,0,0,0]
["Офтальмология",null,null,4870,0,0,null,null,3.8,0,0,0,0,null,null,0,null,null,0,0,null,null,0,0,0]
["Дерматология ",null,null,5400,0,0,null,null,4.2,0,0,0,0,null,null,0,null,null,0,0,null,null,0,0,0]
["Гериатрия",null,null,2904,0,0,null,null,0,0,0,0,0,null,null,0,null,null,0,0,null,null,{"$f":"O40+V40","v":0},0,0]
["Челюстно-лицевая хирургия",null,null,2000,0,{"$f":"ROUND(C41*D41,0)","v":0},null,null,3,0,0,0,0,null,null,0,null,null,0,0,null,null,{"$f":"O41+V41","v":0},{"$f":"J41+R41+W41","v":0},0]
["Лечебное дело (фельдшер)  ***)",null,null,5224,0,0,"х","х","х","х","х","х","х",null,"х","х",null,null,{"$f":"R42","v":0},"х",null,"х","х",{"$f":"R42","v":0},{"$f":"X42-S42","v":0}]
["Медицинский психолог \n ****)",null,null,3444,0,0,null,null,0,{"$f":"ROUND(G43*$I43,0)","v":0},{"$f":"ROUND(H43*$I43,0)","v":0},{"$f":"IF(ROUND(E43-J43,0)>0, ROUND(E43-J43,0),0)","v":0},{"$f":"IF(ROUND(F43-K43,0)>0, ROUND(F43-K43,0),0)","v":0},null,null,{"$f":"L43+O43","v":0},null,null,{"$f":"J43+P43+R43","v":0},0,null,null,{"$f":"O43+V43","v":0},{"$f":"J43+R43+W43","v":0},0]
["ИТОГО",{"$f":"SUM(B12:B21)+SUM(B24:B43)","v":0},{"$f":"SUM(C12:C21)+SUM(C24:C43)","v":0},null,{"$f":"SUM(E12:E21)+SUM(E24:E43)","v":0},null,{"$f":"SUM(G12:G21)+SUM(G24:G43)","v":0},{"$f":"SUM(H12:H21)+SUM(H24:H43)","v":0},null,{"$f":"SUM(J12:J21)+SUM(J24:J43)","v":0},0,0,0,0,0,0,null,{"$f":"SUM(R12:R21)+SUM(R24:R43)","v":0},{"$f":"SUM(S12:S21)+SUM(S24:S43)","v":0},{"$f":"SUM(T12:T21)+SUM(T24:T43)","v":0},null,{"$f":"SUM(V12:V21)+SUM(V24:V43)","v":0},{"$f":"SUM(W12:W21)+SUM(W24:W43)","v":0},{"$f":"SUM(X12:X21)+SUM(X24:X43)","v":0},{"$f":"SUM(Y12:Y21)+SUM(Y24:Y43)","v":0}]
["Медицинская реабилитация",null,"х","х","х","х",null,"х","х",{"$f":"G45","v":0},"х","х","х",null,"х","х",null,"х","х","х",null,"х","х",{"$f":"J45","v":0},{"$f":"X45-G45","v":0}]
["Заместительная почечная терапия",null,"х","х","х","х",null,"х","х",{"$f":"G46","v":0},"х","х","х",null,"х","х",null,"х","х","х",null,"х","х",{"$f":"J46","v":0},{"$f":"X46-G46","v":0}]
["Фельдшерско-акушерские пункты",null,"х","х","х","х","х","х","х","х","х","х","х",null,"х","х",null,"х","х","х",null,null,{"$f":"V47","v":0},{"$f":"V47","v":0},{"$f":"X47-V47","v":0}]
[null,{"$f":"B44+B45+B46+B47","v":0},null,null,{"$f":"E44","v":0},{"$f":"F44","v":0},{"$f":"G44+G45+G46","v":0},{"$f":"H44","v":0},null,{"$f":"J44","v":0},{"$f":"K44","v":0},0,0,null,0,0,null,0,0,0,null,{"$f":"V44","v":0},{"$f":"W44+W47","v":0},{"$f":"X44+X45+X46+X47","v":0},{"$f":"Y44+Y45+Y46+Y47","v":0}]
[]
["*) Утвержденное постоянное штатное расписание, действующее на дату подачи Уведомления."]
["**) По специальности \"Стоматология\" количество занятых штатных должностей врачей по утвержденному штатному расписанию указывается с учетом количества занятых штатных должностей среднего медицинского персонала (зубные врачи)."]
["***) Доврачебная медицинская помощь в неотложной форме, оказываемая медицинскими работниками, со средним медицинским образованием по специальности \"лечебное дело\", при отсутствии занятых должностей врачей - терапевтов в кабинете неотложной медицинской помощи."]
["****) В целях проведения по направлению лечащего врача консультирования пациентов из числа: ветеранов боевых действий; лиц, состоящих на диспансерном наблюдении; женщин в период беременности, родов и послеродовой период по вопросам, связанным с имеющимся заболеванием и/или состоянием, включенным в Территориальную программу обязательного медицинского страхования"]
["*****) Включая школы для больных с хроническими заболеваниями,  школы для беременных и по вопросам грудного вскармливания и школы сахарного диабета "]

{"sheet":"1.1_Школы","index":1,"n_rows":21,"n_cols":4,"rows_kept":21,"cut":false,"hidden":false,"merged":[[0,1,0,3],[2,0,2,3],[4,0,4,3],[7,0,9,0],[7,1,9,1],[7,3,9,3],[8,2,9,2],[3,0,3,3]]}
[null,"Приложение №1.1 к форме 1ОТ (для МО, имеющих прикрепленное население)"]
[]
["Информация о количестве врачей (количестве занятых штатных должностей), участвующих в оказании первичной медико-санитарной помощи и о планируемых к выполнению объемах медицинской помощи на плановый 2027 год в амбулаторных условиях в части \"Школ для больных с хроническими заболеваниями,  школ для беременных и по вопросам грудного вскармливания\", в соответствии с подпунктами 17 и 19 пункта 120 Правил ОМС, утвержденных приказом Министерства здравоохранения Российской Федерации от 21.08.2025 №496н"]
[]
["_______________________________________________________________________________________________________\n(наименование медицинской организации)"]
[]
[]
["Специальности *)","Количество занятых штатных должностей врачей по утвержденному штатному расписанию по состоянию на __.___.2026г.     **)","Предложения МО о планируемых к выполнению в 2027 году объемов медицинской помощи","Проверка\n\"+\" - превышение планируемых мо объемов над максимально возможным количеством посещений обращений, указанных в приложении №1\n\n"]
[null,null,"Обращения, в связи с заболеванием в части \"Школ для больных с хроническими заболеваниями,  школ для беременных и по вопросам грудного вскармливания\"\n"]
[]
[1,2,3,4]
["Кардиология",null,null,{"$f":"IF(C12>'1_с ЦАОП'!G12,\"превышение\",0)","v":0}]
["Терапия (врач медицинской профилактики)",null,null,{"$f":"IF(C13>'1_с ЦАОП'!G16,\"превышение\",0)","v":0}]
["Гастроэнтерология",null,null,{"$f":"IF(C14>'1_с ЦАОП'!G18,\"превышение\",0)","v":0}]
["Нефрология ",null,null,{"$f":"IF(C15>'1_с ЦАОП'!G19,\"превышение\",0)","v":0}]
["Эндокринология, эндокринология детская",null,null,{"$f":"IF(C16>'1_с ЦАОП'!G22,\"превышение\",0)","v":0}]
["Акушерство-гинекология",null,null,{"$f":"IF(C17>'1_с ЦАОП'!G36,\"превышение\",0)","v":0}]
["ИТОГО",{"$f":"SUM(B12:B16)+SUM(B17:B17)","v":0},{"$f":"SUM(C12:C16)+SUM(C17:C17)","v":0},{"$f":"SUM(D12:D16)+SUM(D17:D17)","v":0}]
[]
["*) по школам для больных с хроническими заболеваниями,  школам для беременных и по вопросам грудного вскармливания и школам сахарного диабета "]
["**) Утвержденное постоянное штатное расписание, действующее на дату подачи Уведомления."]